bitfinex/quotes_SOLUSD_20240625
["timestamp","ask_amount","ask_price","bid_price","bid_amount"]
[1719316687099,8.81,138.24,138.19,8.81]
[1719316687302,16.0438,138.24,138.19,8.81]
[1719316687824,0.34,138.25,138.19,8.81]
[1719316688122,8.81,138.25,138.19,8.81]
[1719316688336,108.81,138.25,138.2,8.81]
[1719316689022,8.81,138.24,138.17,15.5546]
[1719316689228,8.98,138.24,138.19,8.81]
[1719316689417,0.17,138.26,138.2,8.81]
[1719316689725,108.81,138.25,138.2,8.81]
[1719316689911,9.15,138.24,138.19,8.81]
[1719316690092,9.15,138.24,138.17,15.5546]
[1719316690293,9.15,138.24,138.19,8.81]
[1719316690523,8.81,138.24,138.2,8.81]
[1719316690716,108.81,138.25,138.2,8.81]
[1719316692302,0.17,138.26,138.2,8.81]
[1719316692503,8.81,138.25,138.2,8.81]
[1719316692705,9.15,138.26,138.21,8.81]
[1719316693603,0.17,138.26,138.21,8.81]
[1719316693808,100.0,138.27,138.22,8.81]
[1719316694008,108.81,138.27,138.22,8.81]
[1719316694523,8.81,138.27,138.22,8.81]
[1719316694729,108.81,138.27,138.22,8.81]
[1719316695947,8.81,138.27,138.22,8.81]
[1719316696601,108.81,138.27,138.22,8.81]
[1719316696801,8.81,138.27,138.22,8.81]
[1719316697627,108.81,138.27,138.22,8.81]
[1719316697803,0.17,138.26,138.17,15.5546]
[1719316698011,8.81,138.25,138.17,15.5546]
[1719316698211,8.81,138.25,138.2,8.81]
[1719316700240,0.17,138.26,138.21,8.81]
[1719316700534,9.15,138.26,138.21,8.81]
[1719316700900,8.81,138.25,138.17,15.5546]
[1719316701107,8.81,138.25,138.2,8.81]
[1719316701630,0.17,138.26,138.22,8.81]
[1719316701804,9.15,138.27,138.22,8.81]
[1719316702006,109.15,138.27,138.22,8.81]
[1719316703743,8.81,138.26,138.21,8.81]
[1719316705512,8.81,138.26,138.17,15.5546]
[1719316705513,15.2237,138.29,138.23,8.81]
[1719316705710,24.0337,138.29,138.24,8.81]
[1719316708043,15.2237,138.29,138.24,8.81]
[1719316708607,24.0337,138.29,138.24,8.81]
[1719316709412,15.2237,138.29,138.24,8.81]
[1719316709935,115.2237,138.29,138.24,8.81]
[1719316711434,115.2237,138.29,138.23,8.81]
[1719316711620,8.81,138.27,138.22,8.81]
[1719316712335,9.15,138.28,138.22,8.81]
[1719316712536,122.455,138.29,138.18,35.24]
[1719316712537,15.2237,138.29,138.18,35.24]
[1719316712714,24.0337,138.29,138.24,8.81]
[1719316713441,15.2237,138.29,138.24,8.81]
[1719316713617,24.0337,138.29,138.24,8.81]
[1719316714426,15.2237,138.29,138.24,8.81]
[1719316714630,24.0337,138.29,138.24,8.81]
[1719316715539,100.0,138.28,138.17,15.5546]
[1719316715838,8.81,138.26,138.21,8.81]
[1719316716182,8.81,138.26,138.18,55.24]
[1719316716441,9.15,138.27,138.22,8.81]
[1719316717434,108.81,138.28,138.23,8.81]
[1719316717736,8.81,138.26,138.21,8.81]
[1719316718535,8.81,138.26,138.18,55.24]
[1719316718838,9.15,138.27,138.22,8.81]
[1719316719642,0.34,138.27,138.23,8.81]
[1719316720145,8.81,138.28,138.23,8.81]
[1719316720531,24.3737,138.29,138.23,8.81]
[1719316720735,0.34,138.28,138.23,8.81]
[1719316721029,24.0337,138.29,138.23,8.81]
[1719316721718,15.2237,138.29,138.23,8.81]
[1719316721914,8.81,138.28,138.23,8.81]
[1719316723729,15.2237,138.29,138.23,8.81]
[1719316723951,8.81,138.28,138.23,8.81]
[1719316726056,15.2237,138.29,138.23,8.81]
[1719316726247,24.0337,138.29,138.24,8.81]
[1719316727444,15.2237,138.29,138.25,8.81]
[1719316727651,109.15,138.3,138.26,8.81]
[1719316727652,0.17,138.3,138.26,8.81]
[1719316727956,8.81,138.31,138.26,8.81]
[1719316728155,116.4354,138.32,138.27,8.81]
[1719316728328,16.4354,138.32,138.27,8.81]
[1719316728536,16.4354,138.32,138.28,8.81]
[1719316728860,108.81,138.34,138.29,8.81]
[1719316729952,116.0385,138.34,138.29,8.81]
[1719316730453,8.98,138.33,138.28,8.81]
[1719316731749,8.98,138.33,138.22,25.1854]
[1719316731965,8.81,138.31,138.23,20.0]
[1719316732129,8.81,138.31,138.26,8.81]
[1719316732530,8.98,138.3,138.25,8.81]
[1719316732745,8.81,138.3,138.25,8.81]
[1719316733059,100.0,138.29,138.22,16.3754]
[1719316733255,108.98,138.29,138.24,8.81]
[1719316733424,100.17,138.29,138.22,16.3754]
[1719316733628,8.81,138.28,138.23,8.81]
[1719316740543,108.98,138.29,138.24,8.81]
[1719316743566,8.81,138.28,138.23,8.81]
[1719316743875,100.17,138.29,138.23,8.81]
[1719316744248,100.17,138.29,138.24,8.81]
[1719316744652,8.81,138.27,138.22,16.3754]
[1719316744861,8.81,138.27,138.21,6.0897]
[1719316744862,8.81,138.27,138.21,8.81]
[1719316745168,8.81,138.26,138.21,8.81]
[1719316747973,8.81,138.27,138.22,8.81]
[1719316749272,108.81,138.27,138.21,8.81]
[1719316749855,108.81,138.27,138.22,8.81]
[1719316751466,108.81,138.27,138.21,8.81]
[1719316751858,108.81,138.27,138.18,57.1649]
[1719316752059,108.81,138.27,138.21,8.81]
[1719316754450,100.0,138.25,138.18,15.3845]
[1719316754654,8.81,138.23,138.15,23.2346]
[1719316754879,8.81,138.22,138.15,23.2346]
[1719316755379,100.0,138.23,138.15,23.2346]
[1719316755380,8.81,138.21,138.15,16.6285]
[1719316755568,8.81,138.21,138.16,8.81]
[1719316756385,108.81,138.21,138.15,16.6285]
[1719316756671,8.81,138.18,138.12,6.427]
[1719316756853,8.81,138.16,138.11,8.81]
[1719316757054,8.81,138.15,138.08,6.172]
[1719316757351,100.0,138.16,138.1,8.81]
[1719316757556,0.17,138.15,138.1,8.81]
[1719316758173,8.81,138.13,138.04,21.8985]
[1719316758467,108.98,138.12,138.04,21.8985]
[1719316758678,108.98,138.12,138.07,8.81]
[1719316759156,108.98,138.12,138.04,21.8985]
[1719316759354,108.98,138.12,138.07,8.81]
[1719316759674,8.98,138.11,138.02,3.79291972]
[1719316759854,8.98,138.1,138.05,8.81]
[1719316760045,8.81,138.09,138.04,8.81]
[1719316760475,8.81,138.09,138.02,3.79291972]
[1719316760651,8.98,138.1,138.05,8.81]
[1719316760852,8.98,138.1,138.04,8.81]
[1719316761761,8.81,138.09,138.02,3.79291972]
[1719316762159,100.0,138.09,138.02,3.79291972]
[1719316762579,8.81,138.08,138.02,3.79291972]
[1719316762882,8.81,138.08,138.04,8.81]
[1719316763255,108.81,138.09,138.04,8.81]
[1719316763450,0.17,138.1,138.04,8.81]
[1719316763656,108.81,138.09,138.02,3.79291972]
[1719316764077,108.81,138.09,138.04,8.81]
[1719316764659,0.17,138.1,138.05,8.81]
[1719316764959,106.175,138.12,138.06,8.81]
[1719316764960,8.98,138.11,138.06,8.81]
[1719316765162,8.98,138.11,138.05,8.81]
[1719316765366,108.81,138.1,138.05,8.81]
[1719316766482,8.81,138.09,138.04,8.81]
[1719316768978,100.0,138.07,138.02,3.79291972]
[1719316769183,8.98,138.06,138.02,3.79291972]
[1719316769370,0.17,138.06,138.02,3.79291972]
[1719316769574,8.98,138.06,138.02,3.79291972]
[1719316770075,8.98,138.05,138.02,11.03811972]
[1719316770582,8.98,138.06,138.04,7.2442]
[1719316771279,8.98,138.06,138.02,3.79291972]
[1719316771280,100.0,138.04,138.02,3.79291972]
[1719316771459,16.3948,138.03,138.02,3.79291972]
[1719316771872,9.15,138.03,138.02,3.79291972]
[1719316772159,8.98,138.03,138.02,3.79291972]
[1719316772373,8.81,138.03,138.02,3.79291972]
[1719316772761,108.81,138.04,138.02,3.79291972]
[1719316773058,6.0306,138.05,138.03,7.2447]
[1719316773880,53.3417,138.11,138.02,3.79291972]
[1719316773881,7.58584,138.15,138.04,64.05]
[1719316774089,7.58584,138.15,138.14,7.239]
[1719316774390,100.0,138.17,138.13,7.2394]
[1719316774562,8.81,138.16,138.13,7.2394]
[1719316774882,100.0,138.17,138.06,26.47]
[1719316775189,107.2375,138.17,138.07,20.17]
[1719316775574,0.34,138.16,138.07,20.17]
[1719316776078,100.0,138.17,138.07,20.17]
[1719316777396,0.17,138.16,138.07,20.17]
[1719316778976,100.0,138.15,138.06,26.47]
[1719316779376,100.0,138.15,138.05,0.17]
[1719316779677,100.0,138.15,138.05,20.34]
[1719316780379,0.17,138.14,138.05,20.17]
[1719316781583,0.17,138.14,138.04,9.49267975]
[1719316781766,100.0,138.13,138.04,9.49267975]
[1719316781970,15.9435,138.12,138.03,26.47]
[1719316782585,100.0,138.11,138.03,26.47]
[1719316782787,16.1135,138.12,138.03,26.47]
[1719316783093,16.1135,138.12,138.02,9.98741972]
[1719316783094,15.9435,138.12,138.02,9.98741972]
[1719316783289,15.9435,138.12,138.03,20.0]
[1719316783788,22.4099,138.12,138.03,20.0]
[1719316785992,22.4099,138.12,138.04,0.17]
[1719316787892,122.4099,138.12,138.03,20.0]
[1719316789692,122.4099,138.12,138.02,6.3645]
[1719316789896,100.0,138.1,138.01,26.47]
[1719316790879,107.2412,138.1,138.01,26.47]
[1719316791070,0.17,138.09,138.01,26.47]
[1719316793700,100.0,138.06,137.98,96.01353332]
[1719316793902,107.2433,138.06,137.98,96.01353332]
[1719316794083,0.17,138.05,137.98,96.01353332]
[1719316794281,29.718,138.07,137.95,6.085]
[1719316794481,0.17,138.06,137.95,6.085]
[1719316794701,107.5835,138.06,137.95,6.085]
[1719316795102,107.5835,138.06,137.94,15.4921]
[1719316795285,100.0,138.04,137.94,15.4921]
[1719316795487,0.17,138.03,137.99,7.2468]
[1719316795779,0.34,138.03,137.99,7.2468]
[1719316797705,16.1009,138.01,137.97,7.2477]
[1719316798497,6.0718,138.0,137.97,7.2477]
[1719316799711,22.7815,138.05,137.9,108.2948]
[1719316799892,22.7815,138.05,138.01,7.2453]
[1719316800087,30.0253,138.05,137.99,7.2464]
[1719316800402,30.0253,138.05,138.0,7.2458]
[1719316800403,7.2443,138.04,138.0,7.2458]
[1719316800916,0.17,138.03,138.0,7.2458]
[1719316801501,0.17,138.03,137.93,26.47]
[1719316801502,100.0,138.02,137.93,26.47]
[1719316801801,0.17,138.01,137.97,7.2478]
[1719316802007,7.4159,138.01,137.97,7.2478]
[1719316802179,7.4159,138.01,137.96,7.2483]
[1719316802379,7.4159,138.01,137.91,20.34]
[1719316802598,100.0,138.0,137.9,16.5048]
[1719316802800,7.4169,137.99,137.94,7.2494]
[1719316803000,7.4169,137.99,137.94,7.2491]
[1719316803304,15.769,137.99,137.95,7.2489]
[1719316803500,106.4398,137.98,137.86,15.4566]
[1719316803688,113.6874,137.98,137.93,7.2499]
[1719316804088,7.248,137.97,137.93,7.2499]
[1719316804284,100.17,137.96,137.89,7.252]
[1719316804496,100.0,137.94,137.9,7.2515]
[1719316805385,0.17,137.97,137.94,7.2493]
[1719316805706,0.17,137.97,137.87,26.47]
[1719316805707,13.6875,137.98,137.93,7.2499]
[1719316805887,6.4398,137.98,137.95,7.2489]
[1719316806092,6.4398,137.98,137.95,7.2486]
[1719316806296,6.4398,137.98,137.94,7.2494]
[1719316806687,15.6054,138.03,137.94,26.47]
[1719316806906,30.424,138.06,138.01,7.2458]
[1719316807105,23.1808,138.06,137.97,26.47]
[1719316807306,23.1808,138.06,137.98,20.0]
[1719316807505,23.1808,138.06,138.05,7.2437]
[1719316807703,21.851,138.1,138.05,7.2437]
[1719316807907,100.0,138.09,138.05,7.2437]
[1719316808410,100.0,138.09,137.98,20.0]
[1719316808612,7.2428,138.07,137.96,46.47]
[1719316808908,29.0922,138.1,137.99,26.47]
[1719316809111,29.0922,138.1,138.0,20.17]
[1719316809112,21.851,138.1,138.0,20.17]
[1719316809305,7.2417,138.09,138.04,7.2438]
[1719316809612,21.851,138.1,138.0,20.0]
[1719316809823,100.0,138.09,137.99,46.47]
[1719316809991,21.851,138.1,138.0,0.17]
[1719316810196,21.851,138.1,138.0,0.34]
[1719316810604,21.851,138.1,137.99,20.0]
[1719316810800,100.0,138.09,137.99,20.0]
[1719316811820,100.0,138.07,137.99,20.0]
[1719316811999,0.17,138.08,137.95,23.0407]
[1719316812194,100.0,138.09,137.96,0.17]
[1719316812613,7.5822,138.08,138.03,7.2447]
[1719316812805,0.34,138.08,138.04,7.2442]
[1719316812998,7.5822,138.08,138.03,7.2446]
[1719316813315,7.2439,138.05,138.0,7.2459]
[1719316813514,0.17,138.06,137.95,23.0407]
[1719316813723,0.34,138.06,137.96,20.0]
[1719316814099,0.34,138.06,137.95,23.0407]
[1719316814100,100.0,138.04,137.95,23.0407]
[1719316814319,100.34,138.06,137.95,23.0407]
[1719316814526,0.34,138.06,138.02,7.2451]
[1719316814822,107.5833,138.06,138.01,7.2458]
[1719316814990,107.5833,138.06,138.02,7.2448]
[1719316814991,0.17,138.06,138.02,7.2448]
[1719316815198,0.17,138.06,138.03,7.2447]
[1719316815626,0.34,138.07,138.03,7.2447]
[1719316816121,21.851,138.1,137.95,44.8107]
[1719316816295,21.851,138.1,138.05,7.2436]
[1719316816296,129.0925,138.1,138.05,7.2436]
[1719316816622,29.0925,138.1,138.05,7.2433]
[1719316816831,29.0924,138.1,138.05,7.2433]
[1719316817126,21.851,138.1,138.05,7.2433]
[1719316818017,21.851,138.1,138.04,7.2442]
[1719316818018,7.242,138.09,138.04,7.2442]
[1719316818236,100.0,138.08,137.97,2.1438905]
[1719316818521,7.244,138.05,138.0,7.2463]
[1719316818715,7.2446,138.04,137.99,7.2468]
[1719316819012,7.2446,138.04,137.99,7.2466]
[1719316819218,0.17,138.06,137.96,20.0]
[1719316819400,107.2439,138.05,138.0,7.2462]
[1719316819603,0.17,138.07,137.96,20.0]
[1719316819916,121.851,138.1,137.96,20.0]
[1719316819917,7.2422,138.08,137.96,20.0]
[1719316820120,21.851,138.1,137.97,0.17]
[1719316822012,6.3589,138.13,138.01,37.4646]
[1719316822327,6.3589,138.13,138.02,21.01532559]
[1719316822690,6.1915,138.17,138.03,65.32]
[1719316822920,6.2092,138.21,138.06,43.8037]
[1719316823221,13.445,138.21,138.09,30.91]
[1719316823521,6.2092,138.21,138.1,21.01498876]
[1719316823725,6.2092,138.21,138.11,0.67493988]
[1719316824019,6.2092,138.21,138.12,0.17]
[1719316824226,29.99919457,138.22,138.14,22.4543]
[1719316824227,13.77199457,138.22,138.14,22.4543]
[1719316824393,13.77199457,138.22,138.15,21.05668781]
[1719316826305,13.77199457,138.22,138.15,20.34]
[1719316827125,13.77199457,138.22,138.15,20.0]
[1719316829029,13.77199457,138.22,138.16,0.17]
[1719316829333,13.77199457,138.22,138.15,20.0]
[1719316830635,100.0,138.25,138.15,20.0]
[1719316830812,107.2333,138.25,138.15,20.0]
[1719316831639,100.0,138.22,138.14,6.6589]
[1719316831816,7.2345,138.23,138.14,6.6589]
[1719316832139,107.5739,138.24,138.14,6.6589]
[1719316832335,100.0,138.24,138.14,6.6589]
[1719316833238,0.34,138.23,138.14,6.6589]
[1719316833539,7.5744,138.23,138.14,6.6589]
[1719316833839,100.0,138.22,138.14,6.6589]
[1719316834133,107.2349,138.22,138.14,6.6589]
[1719316834310,100.0,138.22,138.14,6.6589]
[1719316835611,0.34,138.23,138.14,6.6589]
[1719316835939,100.0,138.24,138.15,0.17]
[1719316836289,100.0,138.24,138.15,20.34]
[1719316837811,15.5566,138.23,138.14,6.6589]
[1719316838028,107.5752,138.22,138.14,6.6589]
[1719316838222,0.34,138.22,138.14,6.6589]
[1719316838540,0.34,138.22,138.15,0.76594802]
[1719316838731,15.5566,138.23,138.14,6.6589]
[1719316840330,100.0,138.22,138.14,6.6589]
[1719316840652,0.34,138.21,138.11,6.1598]
[1719316840818,0.34,138.21,138.12,20.0]
[1719316841636,7.2365,138.19,138.11,6.1598]
[1719316841830,107.236,138.2,138.11,6.1598]
[1719316842224,0.34,138.19,138.11,6.1598]
[1719316843771,7.5764,138.19,138.11,6.1598]
[1719316843931,7.2371,138.18,138.1,15.1385]
[1719316844132,0.34,138.19,138.07,158.0816]
[1719316844133,7.2385,138.15,138.07,158.0816]
[1719316844347,0.17,138.14,138.03,50.944454]
[1719316844649,0.17,138.14,138.03,21.9356]
[1719316844650,7.24,138.12,138.03,21.9356]
[1719316844849,0.17,138.11,138.03,21.9356]
[1719316845226,100.0,138.11,138.03,21.9356]
[1719316845637,0.34,138.12,138.03,21.9356]
[1719316845840,0.17,138.11,138.03,21.9356]
[1719316846027,0.34,138.13,138.03,21.9356]
[1719316846228,7.5795,138.13,138.03,21.9356]
[1719316847422,100.0,138.12,138.03,21.9356]
[1719316847631,0.34,138.11,138.03,21.9356]
[1719316848240,7.5807,138.11,138.03,21.9356]
[1719316848441,100.0,138.1,138.03,21.9356]
[1719316849558,7.2419,138.09,137.98,22.1085]
[1719316849751,7.2419,138.09,137.99,20.17]
[1719316849936,0.34,138.11,137.99,20.0]
[1719316849937,100.0,138.08,137.99,20.0]
[1719316850143,107.2422,138.08,137.99,20.0]
[1719316850442,100.0,138.06,137.98,22.1085]
[1719316850637,100.0,138.06,137.94,21.9138]
[1719316850638,0.17,138.05,137.94,21.9138]
[1719316850841,100.0,138.04,137.94,21.9138]
[1719316851036,0.34,138.03,138.0,7.2463]
[1719316851458,0.34,138.03,138.01,7.2457]
[1719316852051,100.0,138.06,137.94,21.9138]
[1719316852459,100.0,138.04,137.94,21.9138]
[1719316853155,0.34,138.05,138.01,7.2457]
[1719316853362,100.0,138.04,138.01,7.2458]
[1719316853560,100.0,138.04,138.0,7.2462]
[1719316853870,0.34,138.05,138.01,7.2458]
[1719316854644,100.0,138.04,138.0,7.2462]
[1719316854966,0.17,138.03,138.0,7.2462]
[1719316855944,0.17,138.04,138.01,7.2458]
[1719316856249,100.17,138.04,137.94,21.9138]
[1719316856572,100.17,138.04,137.95,20.0]
[1719316856868,0.17,138.04,138.0,7.2459]
[1719316857039,0.17,138.04,137.95,20.0]
[1719316857242,0.34,138.05,137.95,20.0]
[1719316857441,0.34,138.05,138.01,7.2457]
[1719316858173,100.0,138.04,138.0,7.2463]
[1719316858570,107.2443,138.04,138.0,7.2463]
[1719316858749,100.0,138.04,138.0,7.2463]
[1719316858951,0.34,138.05,138.01,7.2456]
[1719316859654,100.0,138.06,138.01,7.2457]
[1719316859857,107.2434,138.06,138.01,7.2457]
[1719316860463,7.2434,138.06,138.01,7.2457]
[1719316860667,107.2434,138.06,138.02,7.2453]
[1719316860864,0.17,138.05,138.01,7.2456]
[1719316861385,100.0,138.06,138.02,7.245]
[1719316861550,107.2432,138.06,138.02,7.245]
[1719316861949,7.2439,138.05,137.95,20.0]
[1719316862148,107.5844,138.04,137.95,20.0]
[1719316862348,0.34,138.04,137.95,20.0]
[1719316862548,0.34,138.04,138.01,7.2455]
[1719316862769,100.0,138.04,138.0,7.2462]
[1719316862969,7.5839,138.05,138.0,7.2462]
[1719316863170,7.2443,138.04,138.0,7.2462]
[1719316863475,0.34,138.05,138.0,7.2461]
[1719316863476,7.584,138.05,138.0,7.2461]
[1719316863683,7.2442,138.04,138.0,7.2461]
[1719316863978,7.5839,138.05,138.01,7.2458]
[1719316864148,107.2444,138.04,137.95,20.0]
[1719316864345,107.2444,138.04,137.99,7.2467]
[1719316864581,107.2444,138.04,137.94,21.9138]
[1719316864582,100.0,138.02,137.94,21.9138]
[1719316864871,100.0,138.02,137.96,7.248]
[1719316864872,0.34,138.01,137.96,7.248]
[1719316865082,0.34,138.01,137.94,15.9006]
[1719316865456,7.5861,138.01,137.97,7.2477]
[1719316865875,7.5861,138.01,137.94,15.9006]
[1719316866060,0.34,138.01,137.98,7.2474]
[1719316866467,0.34,138.01,137.97,7.2477]
[1719316867190,7.5858,138.01,137.97,7.2477]
[1719316867957,100.0,138.0,137.96,7.2483]
[1719316868274,7.5869,137.99,137.95,7.2488]
[1719316869078,0.34,137.99,137.95,7.2488]
[1719316869571,100.0,137.98,137.94,7.2493]
[1719316870169,0.17,137.97,137.93,7.25]
[1719316870349,0.34,137.97,137.93,7.25]
[1719316870557,7.5881,137.97,137.92,7.2505]
[1719316870855,0.34,137.97,137.87,37.1834]
[1719316871050,0.34,137.97,137.88,20.0]
[1719316871451,7.5879,137.97,137.93,7.25]
[1719316871658,0.34,137.97,137.93,7.25]
[1719316872460,100.0,137.95,137.92,7.2504]
[1719316872661,100.0,137.95,137.91,7.2507]
[1719316872861,23.2283,137.96,137.87,21.7989]
[1719316873077,0.34,137.95,137.92,7.2505]
[1719316873295,100.34,137.95,137.87,21.7989]
[1719316873458,107.589,137.95,137.91,7.2509]
[1719316873656,100.34,137.95,137.91,7.2509]
[1719316874861,107.5891,137.95,137.91,7.2509]
[1719316875487,107.5891,137.95,137.87,21.7989]
[1719316875488,100.34,137.95,137.92,7.2504]
[1719316875780,0.34,137.95,137.92,7.2504]
[1719316876667,23.2283,137.96,137.92,7.2505]
[1719316877068,15.9798,137.96,137.92,7.2505]
[1719316877466,0.17,137.95,137.92,7.2505]
[1719316878068,100.17,137.95,137.84,15.6452]
[1719316878273,7.2496,137.94,137.89,7.2517]
[1719316878465,0.17,137.93,137.84,15.6452]
[1719316878659,0.17,137.93,137.89,7.2518]
[1719316879499,7.2496,137.94,137.9,7.2514]
[1719316879784,113.7132,137.95,137.91,7.251]
[1719316879971,0.17,137.94,137.91,7.251]
[1719316880177,0.34,137.94,137.91,7.251]
[1719316880389,6.1242,137.95,137.93,7.25]
[1719316880568,15.9798,137.96,137.93,7.25]
[1719316880990,15.9798,137.96,137.92,7.2503]
[1719316881364,23.2283,137.96,137.92,7.2503]
[1719316881889,15.9798,137.96,137.86,26.56]
[1719316882066,15.9798,137.96,137.93,7.2499]
[1719316883294,23.2284,137.96,137.92,7.2503]
[1719316884382,15.9798,137.96,137.93,7.2499]
[1719316885184,23.2282,137.96,137.92,7.2503]
[1719316885381,23.2282,137.96,137.86,26.56]
[1719316885382,7.419,137.95,137.91,7.251]
[1719316885582,7.419,137.95,137.86,26.56]
[1719316885583,15.9798,137.96,137.93,7.2497]
[1719316885776,14.11547058,137.99,137.86,26.56]
[1719316885978,0.17,137.98,137.94,7.2493]
[1719316886196,7.4178,137.98,137.86,26.56]
[1719316886373,7.4178,137.98,137.93,7.2498]
[1719316886577,0.17,137.98,137.87,20.0]
[1719316886799,0.17,137.98,137.94,7.2493]
[1719316887098,100.0,137.97,137.88,0.17]
[1719316887282,100.0,137.97,137.87,20.0]
[1719316887801,107.248,137.97,137.92,7.2501]
[1719316888190,7.5886,137.96,137.91,7.2509]
[1719316888391,0.34,137.96,137.92,7.25]
[1719316888690,7.4185,137.96,137.92,7.25]
[1719316889482,106.5414,137.99,137.88,0.6115344]
[1719316889813,6.5414,137.99,137.96,7.2483]
[1719316890103,106.5414,137.99,137.96,7.2483]
[1719316890991,106.5414,137.99,137.95,7.2488]
[1719316891507,113.7883,137.99,137.94,7.2493]
[1719316892285,113.7883,137.99,137.95,7.2489]
[1719316893002,6.5414,137.99,137.91,2.05996257]
[1719316893211,6.5414,137.99,137.97,7.2474]
[1719316894305,29.6507,138.03,137.98,7.2472]
[1719316894487,29.6507,138.03,137.91,2.05996257]
[1719316894488,15.914,138.03,137.91,2.05996257]
[1719316894690,15.914,138.03,138.0,7.2458]
[1719316894909,15.914,138.03,138.01,7.2457]
[1719316895306,15.914,138.03,138.0,7.2463]
[1719316895812,15.914,138.03,137.99,7.2467]
[1719316896510,23.1588,138.03,137.98,7.2473]
[1719316896708,7.4154,138.02,137.97,7.2478]
[1719316896919,0.17,138.02,137.9,15.8054]
[1719316897231,100.0,138.01,137.94,7.2493]
[1719316897508,7.5865,138.0,137.95,7.2489]
[1719316897684,0.34,138.0,137.96,7.2483]
[1719316898013,0.34,138.0,137.97,7.2479]
[1719316899103,0.17,138.0,137.97,7.2479]
[1719316899413,7.246,138.01,137.9,15.8054]
[1719316899414,7.246,138.01,137.96,7.2482]
[1719316899915,7.4164,138.0,137.96,7.2482]
[1719316900206,7.4164,138.0,137.95,7.2489]
[1719316902011,100.0,137.99,137.95,7.2488]
[1719316902206,107.247,137.99,137.94,7.2491]
[1719316903111,100.0,137.99,137.94,7.2491]
[1719316903314,116.6394,137.97,137.92,7.2501]
[1719316903495,123.8876,137.97,137.92,7.2501]
[1719316904317,107.2493,137.95,137.87,15.6367]
[1719316905194,0.17,137.94,137.91,7.2508]
[1719316905398,0.34,137.94,137.91,7.2508]
[1719316906297,7.2486,137.96,137.92,7.2504]
[1719316906492,0.34,137.95,137.92,7.2504]
[1719316906893,100.34,137.95,137.91,7.2509]
[1719316907108,0.34,137.95,137.91,7.2509]
[1719316907307,0.34,137.95,137.92,7.2504]
[1719316907607,0.17,137.95,137.92,7.2504]
[1719316907911,0.34,137.96,137.92,7.2504]
[1719316908712,7.5886,137.96,137.92,7.2504]
[1719316908919,7.5886,137.96,137.91,7.2509]
[1719316909711,100.0,137.95,137.9,7.2515]